Workbook

Sheet Guide d'utilisation
B12: Guide d'utilisation :
B13: Il faut inscrire le mois de départ du budget à l'aide du menu déroulant situé à la ligne 2 en haut à gauche dans l'onglet « Trésorerie ».
B14: Les cellules noires représentent les totaux à fournir par l'utilisateur.
B15: Les cellules blanches doivent être remplies par l'utilisateur pour la répartition des montants par mois.
B16: Les cellules dans la colonne « Vérification » deviennent rouges si la ligne ne balance pas.
B17: Le montant remboursé sur la marge de crédit est automatiquement le maximum disponible à l'encaisse.
B18: L'utilisateur doit ajuster le pourcentage des intérêts annuels sur la marge de crédit à l'aide des boutons situés en bas de la grille.
B19: Le solde bancaire du début et la marge de crédit accumulée le mois précédent doivent être saisis dès le départ aux lignes 72 et 79.
B20: Dans l'onglet « Réalisé », il faut saisir les données réelles après trois, six ou neuf mois si on veut faire un suivi.
B22: Conception : Martin Malenfant, agronome, Direction régionale du Bas-Saint-Laurent (DRBSL), Ministère de l'Agriculture, des Pêcheries et de l'Alimentation (MAPAQ)
B23: Programmation : Christophe Cyr Arsenault, B. Sc. A., DRBSL, MAPAQ
B24: Participation : Andrée Champagne, étudiante en génie agroenvironnemental, DRBSL, MAPAQ

Sheet Trésorerie
B1: Nom de l'entreprise : | H1: Production : | L1: Année :
B2: Premier mois (choisir) | C2: =VLOOKUP($R$3,$T$3:$AF$14,2,0) -> Mai | D2: =VLOOKUP($R$3,$T$3:$AF$14,3,0) -> Juin | E2: =VLOOKUP($R$3,$T$3:$AF$14,4,0) -> Juillet | F2: =VLOOKUP($R$3,$T$3:$AF$14,5,0) -> Août | G2: =VLOOKUP($R$3,$T$3:$AF$14,6,0) -> Septembre | H2: =VLOOKUP($R$3,$T$3:$AF$14,7,0) -> Octobre | I2: =VLOOKUP($R$3,$T$3:$AF$14,8,0) -> Novembre | J2: =VLOOKUP($R$3,$T$3:$AF$14,9,0) -> Décembre | K2: =VLOOKUP($R$3,$T$3:$AF$14,10,0) -> Janvier | L2: =VLOOKUP($R$3,$T$3:$AF$14,11,0) -> Février | M2: =VLOOKUP($R$3,$T$3:$AF$14,12,0) -> Mars | N2: =VLOOKUP($R$3,$T$3:$AF$14,13,0) -> Avril | O2: Total | P2: Validation
B3: Recettes d'exploitation | R3: 5 | S3: Janvier | T3: 1 | U3: Janvier | V3: Février | W3: Mars | X3: Avril | Y3: Mai | Z3: Juin | AA3: Juillet | AB3: Août | AC3: Septembre | AD3: Octobre | AE3: Novembre | AF3: Décembre
P4: =SUM(C4:N4) -> 0 | S4: Février | T4: 2 | U4: Février | V4: Mars | W4: Avril | X4: Mai | Y4: Juin | Z4: Juillet | AA4: Août | AB4: Septembre | AC4: Octobre | AD4: Novembre | AE4: Décembre | AF4: Janvier
P5: =SUM(C5:N5) -> 0 | S5: Mars | T5: 3 | U5: Mars | V5: Avril | W5: Mai | X5: Juin | Y5: Juillet | Z5: Août | AA5: Septembre | AB5: Octobre | AC5: Novembre | AD5: Décembre | AE5: Janvier | AF5: Février
P6: =SUM(C6:N6) -> 0 | S6: Avril | T6: 4 | U6: Avril | V6: Mai | W6: Juin | X6: Juillet | Y6: Août | Z6: Septembre | AA6: Octobre | AB6: Novembre | AC6: Décembre | AD6: Janvier | AE6: Février | AF6: Mars
P7: =SUM(C7:N7) -> 0 | S7: Mai | T7: 5 | U7: Mai | V7: Juin | W7: Juillet | X7: Août | Y7: Septembre | Z7: Octobre | AA7: Novembre | AB7: Décembre | AC7: Janvier | AD7: Février | AE7: Mars | AF7: Avril
P8: 0 | S8: Juin | T8: 6 | U8: Juin | V8: Juillet | W8: Août | X8: Septembre | Y8: Octobre | Z8: Novembre | AA8: Décembre | AB8: Janvier | AC8: Février | AD8: Mars | AE8: Avril | AF8: Mai
P9: 0 | S9: Juillet | T9: 7 | U9: Juillet | V9: Août | W9: Septembre | X9: Octobre | Y9: Novembre | Z9: Décembre | AA9: Janvier | AB9: Février | AC9: Mars | AD9: Avril | AE9: Mai | AF9: Juin
P10: 0 | S10: Août | T10: 8 | U10: Août | V10: Septembre | W10: Octobre | X10: Novembre | Y10: Décembre | Z10: Janvier | AA10: Février | AB10: Mars | AC10: Avril | AD10: Mai | AE10: Juin | AF10: Juillet | AG10: 1234
P11: 0 | S11: Septembre | T11: 9 | U11: Septembre | V11: Octobre | W11: Novembre | X11: Décembre | Y11: Janvier | Z11: Février | AA11: Mars | AB11: Avril | AC11: Mai | AD11: Juin | AE11: Juillet | AF11: Août
P12: 0 | S12: Octobre | T12: 10 | U12: Octobre | V12: Novembre | W12: Décembre | X12: Janvier | Y12: Février | Z12: Mars | AA12: Avril | AB12: Mai | AC12: Juin | AD12: Juillet | AE12: Août | AF12: Septembre
P13: 0 | S13: Novembre | T13: 11 | U13: Novembre | V13: Décembre | W13: Janvier | X13: Février | Y13: Mars | Z13: Avril | AA13: Mai | AB13: Juin | AC13: Juillet | AD13: Août | AE13: Septembre | AF13: Octobre
P14: 0 | S14: Décembre | T14: 12 | U14: Décembre | V14: Janvier | W14: Février | X14: Mars | Y14: Avril | Z14: Mai | AA14: Juin | AB14: Juillet | AC14: Août | AD14: Septembre | AE14: Octobre | AF14: Novembre
P15: 0
P16: 0
P17: 0
P18: 0
B19: Total des recettes d'expl. (A) | C19: =SUM(C4:C18) -> 0 | D19: 0 | E19: 0 | F19: 0 | G19: 0 | H19: 0 | I19: 0 | J19: 0 | K19: 0 | L19: 0 | M19: 0 | N19: 0 | O19: 0 | P19: =SUM(C19:N19) -> 0
B21: Déboursés d'exploitation | C21: =C2 -> Mai | D21: Juin | E21: Juillet | F21: Août | G21: Septembre | H21: Octobre | I21: Novembre | J21: Décembre | K21: Janvier | L21: Février | M21: Mars | N21: Avril | O21: Total | P21: Validation | S21: =(S23+T24)/100 -> 0.09
P22: =SUM(C22:N22) -> 0
P23: =SUM(C23:N23) -> 0 | S23: 9 | T23: 0
P24: 0 | T24: =T23/10 -> 0
P25: 0
P26: 0
P27: 0
P28: 0
P29: 0
P30: 0
P31: 0
P32: 0
P33: 0
P34: 0
P35: 0
P36: 0
P37: 0
P38: 0
P39: 0
P40: 0
P41: 0
P42: 0
P43: 0
P44: 0
P45: 0
P46: 0
P47: 0
P48: 0
P49: 0
P50: 0
P51: 0
P52: 0
P53: 0
P54: 0
P55: 0
P56: 0
B57: Total des déboursés d'expl. (B) | C57: =SUM(C22:C56) -> 0 | D57: 0 | E57: 0 | F57: 0 | G57: 0 | H57: 0 | I57: 0 | J57: 0 | K57: 0 | L57: 0 | M57: 0 | N57: 0 | O57: 0 | P57: 0
B58: Marge monétaire d'expl. (A-B) | C58: =C19-C57 -> 0 | D58: 0 | E58: 0 | F58: 0 | G58: 0 | H58: 0 | I58: 0 | J58: 0 | K58: 0 | L58: 0 | M58: 0 | N58: 0 | O58: 0 | P58: 0
B60: (+) Ventes d'actifs | P60: =SUM(C60:N60) -> 0
B61: (+) Nouveaux emprunts | P61: =SUM(C61:N61) -> 0
B62: (+) Apports des propriétaires | P62: =SUM(C62:N62) -> 0
B63: (-) Remb. des fournisseurs | P63: =SUM(C63:N63) -> 0
B64: (-) Achats d'actifs | P64: 0
B65: (-) Int. sur les emprunts MLT | P65: =SUM(C65:N65) -> 0
B66: =CONCATENATE("(-) Int. sur la marge de crédit (",D81,")") -> (-) Int. sur la marge de crédit (9%) | C66: =IF(C78>0,C78*$S$21/12,0) -> 0 | D66: =IF(C77>0,C77*$S$21/12,0) -> 0 | E66: 0 | F66: 0 | G66: 0 | H66: =IF(G77>0,G77*$S$21/12,0) -> 0 | I66: 0 | J66: 0 | K66: 0 | L66: 0 | M66: 0 | N66: 0 | O66: =SUM(C66:N66) -> 0 | P66: 0
B67: (-) Remb. de capital | P67: 0
B68: (-) Retraits des propriétaires | P68: 0
B69: Marge monétaire | C69: =C58+C60+C61+C62-C63-C64-C65-C66-C67-C68 -> 0 | D69: =D58+D60+D61+D62-D63-D64-D65-D66-D67-D68 -> 0 | E69: =E58+E60+E61+E62-E63-E64-E65-E66-E67-E68 -> 0 | F69: =F58+F60+F61+F62-F63-F64-F65-F66-F67-F68 -> 0 | G69: 0 | H69: =H58+H60+H61+H62-H63-H64-H65-H66-H67-H68 -> 0 | I69: 0 | J69: 0 | K69: 0 | L69: 0 | M69: 0 | N69: 0 | O69: =O58+O60+O61+O62-O63-O64-O65-O66-O67-O68 -> 0 | P69: 0
B71: (+) Solde bancaire au début | D71: =C75 -> 0 | E71: 0 | F71: 0 | G71: 0 | H71: 0 | I71: 0 | J71: =I75 -> 0 | K71: =J75 -> 0 | L71: =K75 -> 0 | M71: =L75 -> 0 | N71: =M75 -> 0
B72: (=) Solde mensuel de la trésorerie | C72: =C69+C71 -> 0 | D72: =D69+D71 -> 0 | E72: =E69+E71 -> 0 | F72: 0 | G72: 0 | H72: 0 | I72: =I69+I71 -> 0 | J72: 0 | K72: 0 | L72: 0 | M72: 0 | N72: 0
B73: (+) Emprunt sur la marge de crédit | C73: =IF(C72<0,C72*-1,0) -> 0 | D73: =IF(D72<0,D72*-1,0) -> 0 | E73: =IF(E72<0,E72*-1,0) -> 0 | F73: 0 | G73: 0 | H73: 0 | I73: =IF(I72<0,I72*-1,0) -> 0 | J73: 0 | K73: 0 | L73: 0 | M73: 0 | N73: 0
B74: (-) Remb. de la marge de crédit | C74: =IF(AND(C72>0,C78>0,C78<C72),C78,IF(AND(C72>0,C78>0,C78>C72),C72,0)) -> 0 | D74: =IF(AND(C77>0,D72>0,C77>D72),D72,IF(AND(C77>0,D72>0,C77<=D72),C77,0)) -> 0 | E74: 0 | F74: 0 | G74: 0 | H74: 0 | I74: 0 | J74: 0 | K74: 0 | L74: 0 | M74: 0 | N74: 0
B75: (=) Solde bancaire à la fin | C75: =C72+C73-C74 -> 0 | D75: =D72+D73-D74 -> 0 | E75: =E72+E73-E74 -> 0 | F75: 0 | G75: 0 | H75: 0 | I75: =I72+I73-I74 -> 0 | J75: =J72+J73-J74 -> 0 | K75: 0 | L75: 0 | M75: 0 | N75: 0
B77: Marge de crédit accumulée | C77: =C78+C73-C74 -> 0 | D77: =C77+D73-D74 -> 0 | E77: =D77+E73-E74 -> 0 | F77: 0 | G77: 0 | H77: =G77+H73-H74 -> 0 | I77: 0 | J77: =I77+J73-J74 -> 0 | K77: 0 | L77: 0 | M77: 0 | N77: 0
B78: Marge de crédit accumulée le mois précédent
M80: Validation : | N80: =-C78+C71+O69 -> 0
B81: Int. sur la marge de crédit (annuels) | C81: 8 | D81: =CONCATENATE(S21*100,"%") -> 9% | M81: Validation : | N81: =-N77+N75 -> 0
B82: Ajuster
B84: Conception : Martin Malenfant, agronome, DRBSL, MAPAQ
B85: Programmation : Christophe Cyr Arsenault, B. Sc. A., DRBSL, MAPAQ

Sheet Réalisé
B2: Recettes d'exploitation | C2: Budget ($) sur 12 mois | D2: Réalisé ($) en 3 mois | E2: % | F2: Réalisé ($) en 6 mois | G2: % | H2: Réalisé ($) en 9 mois | I2: % | J2: % réalisé
B3: =IF(Trésorerie!B4="","",Trésorerie!B4) ->  | C3: =IF(Trésorerie!O4="","",Trésorerie!O4) ->  | E3: =IF(C3="","",(D3/C3)*100) ->  | G3: =IF(C3="","",(F3/C3)*100) ->  | I3: =IF(C3="","",(H3/C3)*100) ->  | J3: =IFERROR(E3+G3+I3,"") -> 
B4: =IF(Trésorerie!B5="","",Trésorerie!B5) ->  | C4: =IF(Trésorerie!O5="","",Trésorerie!O5) ->  | E4: =IF(C4="","",(D4/C4)*100) ->  | G4: =IF(C4="","",(F4/C4)*100) ->  | I4: =IF(C4="","",(H4/C4)*100) ->  | J4: =IFERROR(E4+G4+I4,"") -> 
B5: =IF(Trésorerie!B6="","",Trésorerie!B6) ->  | C5: =IF(Trésorerie!O6="","",Trésorerie!O6) ->  | J5: =IFERROR(E5+G5+I5,"") -> 
B6: =IF(Trésorerie!B7="","",Trésorerie!B7) ->  | C6: =IF(Trésorerie!O7="","",Trésorerie!O7) ->  | J6: =IFERROR(E6+G6+I6,"") -> 
B7: =IF(Trésorerie!B8="","",Trésorerie!B8) ->  | C7: =IF(Trésorerie!O8="","",Trésorerie!O8) -> 
B8: =IF(Trésorerie!B9="","",Trésorerie!B9) ->  | C8: =IF(Trésorerie!O9="","",Trésorerie!O9) -> 
B9: =IF(Trésorerie!B10="","",Trésorerie!B10) ->  | C9: =IF(Trésorerie!O10="","",Trésorerie!O10) -> 
B10: =IF(Trésorerie!B11="","",Trésorerie!B11) ->  | C10: =IF(Trésorerie!O11="","",Trésorerie!O11) -> 
B11: =IF(Trésorerie!B12="","",Trésorerie!B12) ->  | C11: =IF(Trésorerie!O12="","",Trésorerie!O12) -> 
B12: =IF(Trésorerie!B13="","",Trésorerie!B13) ->  | C12: =IF(Trésorerie!O13="","",Trésorerie!O13) -> 
B13: =IF(Trésorerie!B14="","",Trésorerie!B14) ->  | C13: =IF(Trésorerie!O14="","",Trésorerie!O14) -> 
B14: =IF(Trésorerie!B15="","",Trésorerie!B15) ->  | C14: =IF(Trésorerie!O15="","",Trésorerie!O15) -> 
B15: =IF(Trésorerie!B16="","",Trésorerie!B16) ->  | C15: =IF(Trésorerie!O16="","",Trésorerie!O16) -> 
B16: =IF(Trésorerie!B17="","",Trésorerie!B17) ->  | C16: =IF(Trésorerie!O17="","",Trésorerie!O17) -> 
B17: =IF(Trésorerie!B18="","",Trésorerie!B18) ->  | C17: =IF(Trésorerie!O18="","",Trésorerie!O18) -> 
B18: Total des recettes d'expl. (A) | C18: =SUM(C3:C17) -> 0 | D18: =SUM(D3:D17) -> 0 | F18: =SUM(F3:F17) -> 0 | H18: =SUM(H3:H17) -> 0
B20: Déboursés d'exploitation | C20: Budget ($) sur 12 mois | D20: Réalisé ($) en 3 mois | E20: % | F20: Réalisé ($) en 6 mois | G20: % | H20: Réalisé ($) en 9 mois | I20: % | J20: % réalisé
B21: =IF(Trésorerie!B22="","",Trésorerie!B22) ->  | C21: =IF(Trésorerie!O22="","",Trésorerie!O22) ->  | E21: =IF(C21="","",(D21/C21)*100) ->  | G21: =IF(C21="","",(F21/C21)*100) ->  | I21: =IF(C21="","",(H21/C21)*100) ->  | J21: =IFERROR(E21+G21+I21,"") -> 
B22: =IF(Trésorerie!B23="","",Trésorerie!B23) ->  | C22: =IF(Trésorerie!O23="","",Trésorerie!O23) ->  | E22: =IF(C22="","",(D22/C22)*100) ->  | G22: =IF(C22="","",(F22/C22)*100) ->  | I22: =IF(C22="","",(H22/C22)*100) ->  | J22: =IFERROR(E22+G22+I22,"") -> 
B23: =IF(Trésorerie!B24="","",Trésorerie!B24) ->  | C23: =IF(Trésorerie!O24="","",Trésorerie!O24) -> 
B24: =IF(Trésorerie!B25="","",Trésorerie!B25) ->  | C24: =IF(Trésorerie!O25="","",Trésorerie!O25) -> 
B25: =IF(Trésorerie!B26="","",Trésorerie!B26) ->  | C25: =IF(Trésorerie!O26="","",Trésorerie!O26) -> 
B26: =IF(Trésorerie!B27="","",Trésorerie!B27) ->  | C26: =IF(Trésorerie!O27="","",Trésorerie!O27) -> 
B27: =IF(Trésorerie!B28="","",Trésorerie!B28) ->  | C27: =IF(Trésorerie!O28="","",Trésorerie!O28) -> 
B28: =IF(Trésorerie!B29="","",Trésorerie!B29) ->  | C28: =IF(Trésorerie!O29="","",Trésorerie!O29) -> 
B29: =IF(Trésorerie!B30="","",Trésorerie!B30) ->  | C29: =IF(Trésorerie!O30="","",Trésorerie!O30) -> 
B30: =IF(Trésorerie!B31="","",Trésorerie!B31) ->  | C30: =IF(Trésorerie!O31="","",Trésorerie!O31) -> 
B31: =IF(Trésorerie!B32="","",Trésorerie!B32) ->  | C31: =IF(Trésorerie!O32="","",Trésorerie!O32) -> 
B32: =IF(Trésorerie!B33="","",Trésorerie!B33) ->  | C32: =IF(Trésorerie!O33="","",Trésorerie!O33) -> 
B33: =IF(Trésorerie!B34="","",Trésorerie!B34) ->  | C33: =IF(Trésorerie!O34="","",Trésorerie!O34) -> 
B34: =IF(Trésorerie!B35="","",Trésorerie!B35) ->  | C34: =IF(Trésorerie!O35="","",Trésorerie!O35) -> 
B35: =IF(Trésorerie!B36="","",Trésorerie!B36) ->  | C35: =IF(Trésorerie!O36="","",Trésorerie!O36) -> 
B36: =IF(Trésorerie!B37="","",Trésorerie!B37) ->  | C36: =IF(Trésorerie!O37="","",Trésorerie!O37) -> 
B37: =IF(Trésorerie!B38="","",Trésorerie!B38) ->  | C37: =IF(Trésorerie!O38="","",Trésorerie!O38) -> 
B38: =IF(Trésorerie!B39="","",Trésorerie!B39) ->  | C38: =IF(Trésorerie!O39="","",Trésorerie!O39) -> 
B39: =IF(Trésorerie!B40="","",Trésorerie!B40) ->  | C39: =IF(Trésorerie!O40="","",Trésorerie!O40) -> 
B40: =IF(Trésorerie!B41="","",Trésorerie!B41) ->  | C40: =IF(Trésorerie!O41="","",Trésorerie!O41) -> 
B41: =IF(Trésorerie!B42="","",Trésorerie!B42) ->  | C41: =IF(Trésorerie!O42="","",Trésorerie!O42) -> 
B42: =IF(Trésorerie!B43="","",Trésorerie!B43) ->  | C42: =IF(Trésorerie!O43="","",Trésorerie!O43) -> 
B43: =IF(Trésorerie!B44="","",Trésorerie!B44) ->  | C43: =IF(Trésorerie!O44="","",Trésorerie!O44) -> 
B44: =IF(Trésorerie!B45="","",Trésorerie!B45) ->  | C44: =IF(Trésorerie!O45="","",Trésorerie!O45) -> 
B45: =IF(Trésorerie!B46="","",Trésorerie!B46) ->  | C45: =IF(Trésorerie!O46="","",Trésorerie!O46) -> 
B46: =IF(Trésorerie!B47="","",Trésorerie!B47) ->  | C46: =IF(Trésorerie!O47="","",Trésorerie!O47) -> 
B47: =IF(Trésorerie!B48="","",Trésorerie!B48) ->  | C47: =IF(Trésorerie!O48="","",Trésorerie!O48) -> 
B48: =IF(Trésorerie!B49="","",Trésorerie!B49) ->  | C48: =IF(Trésorerie!O49="","",Trésorerie!O49) -> 
B49: =IF(Trésorerie!B50="","",Trésorerie!B50) ->  | C49: =IF(Trésorerie!O50="","",Trésorerie!O50) -> 
B50: =IF(Trésorerie!B51="","",Trésorerie!B51) ->  | C50: =IF(Trésorerie!O51="","",Trésorerie!O51) -> 
B51: =IF(Trésorerie!B52="","",Trésorerie!B52) ->  | C51: =IF(Trésorerie!O52="","",Trésorerie!O52) -> 
B52: =IF(Trésorerie!B53="","",Trésorerie!B53) ->  | C52: =IF(Trésorerie!O53="","",Trésorerie!O53) -> 
B53: =IF(Trésorerie!B54="","",Trésorerie!B54) ->  | C53: =IF(Trésorerie!O54="","",Trésorerie!O54) -> 
B54: =IF(Trésorerie!B55="","",Trésorerie!B55) ->  | C54: =IF(Trésorerie!O55="","",Trésorerie!O55) -> 
B55: =IF(Trésorerie!B56="","",Trésorerie!B56) ->  | C55: =IF(Trésorerie!O56="","",Trésorerie!O56) -> 
B56: Total des déboursés d'expl. (B) | C56: =SUM(C21:C55) -> 0 | D56: =SUM(D21:D55) -> 0 | F56: =SUM(F21:F55) -> 0 | H56: =SUM(H21:H55) -> 0
B57: Marge monétaire d'expl. (A-B) | C57: =C18-C56 -> 0 | D57: =D18-D56 -> 0 | F57: =F18-F56 -> 0 | H57: =H18-H56 -> 0
B59: (+) Ventes d'actifs | C59: =IF(Trésorerie!O60="","",Trésorerie!O60) ->  | E59: =IF(C59="","",(D59/C59)*100) ->  | G59: =IF(C59="","",(F59/C59)*100) ->  | I59: =IF(C59="","",(H59/C59)*100) ->  | J59: =IFERROR(E59+G59+I59,"") -> 
B60: (+) Nouveaux emprunts | C60: =IF(Trésorerie!O61="","",Trésorerie!O61) ->  | E60: =IF(C60="","",(D60/C60)*100) ->  | G60: =IF(C60="","",(F60/C60)*100) ->  | I60: =IF(C60="","",(H60/C60)*100) ->  | J60: =IFERROR(E60+G60+I60,"") -> 
B61: (+) Apports des propriétaires | C61: =IF(Trésorerie!O62="","",Trésorerie!O62) ->  | I61: =IF(C61="","",(H61/C61)*100) -> 
B62: (-) Remb. des fournisseurs | C62: =IF(Trésorerie!O63="","",Trésorerie!O63) -> 
B63: (-) Achats d'actifs | C63: =IF(Trésorerie!O64="","",Trésorerie!O64) -> 
B64: (-) Intérêts sur les emprunts MLT | C64: =IF(Trésorerie!O65="","",Trésorerie!O65) -> 
B65: =CONCATENATE("(-) Int. sur la marge de crédit (",Trésorerie!D81,")") -> (-) Int. sur la marge de crédit (9%) | C65: =IF(Trésorerie!O66="","",Trésorerie!O66) -> 0 | E65: =IF(C65=0,0,(D65/C65)*100) -> 0 | G65: =IF(C65=0,0,(F65/C65)*100) -> 0 | I65: =IF(C65=0,0,(H65/C65)*100) -> 0 | J65: 0
B66: (-) Remb. de capital | C66: =IF(Trésorerie!O67="","",Trésorerie!O67) -> 
B67: (-) Retraits des propriétaires | C67: =IF(Trésorerie!O68="","",Trésorerie!O68) -> 
B68: Marge monétaire | C68: =SUM(C57,C59:C61)-SUM(C62:C67) -> 0 | D68: =SUM(D57,D59:D61)-SUM(D62:D67) -> 0 | F68: =SUM(F57,F59:F61)-SUM(F62:F67) -> 0 | H68: =SUM(H57,H59:H61)-SUM(H62:H67) -> 0
B70: Conception : Martin Malenfant, agronome, DRBSL, MAPAQ
B71: Programmation : Andrée Champagne, étudiante en génie agroenvironnemental, DRBSL, MAPAQ

Sheet Emprunt
B2: 1. Saisir les renseignements relatifs à l'emprunt.
B4: Somme empruntée ($) | D4: 40000
B5: Taux d'intérêt (%) | D5: 5
B6: Amortissement* (nombre d'années) | D6: 7
B8: *Durée de l'amortissement du calculateur : jusqu'à 25 ans.
B11: 2. Sélectionner la période.
B13: Choix de la période | D13: An 1
B16: 3. Choisir la capitalisation appropriée et utiliser les renseignements suivants pour remplir les lignes 66 et 68 de l'onglet « Trésorerie ».
B18: Capitalisation mensuelle (12 mois par année)
B19: Pour les colonnes B à M
B20: Mois | C20: =VLOOKUP($D$13,'Capitalisation mensuelle'!$H$8:$T$32,2,FALSE) -> 1 | D20: =VLOOKUP($D$13,'Capitalisation mensuelle'!$H$8:$T$32,3,FALSE) -> 2 | E20: =VLOOKUP($D$13,'Capitalisation mensuelle'!$H$8:$T$32,4,FALSE) -> 3 | F20: =VLOOKUP($D$13,'Capitalisation mensuelle'!$H$8:$T$32,5,FALSE) -> 4 | G20: =VLOOKUP($D$13,'Capitalisation mensuelle'!$H$8:$T$32,6,FALSE) -> 5 | H20: =VLOOKUP($D$13,'Capitalisation mensuelle'!$H$8:$T$32,7,FALSE) -> 6 | I20: =VLOOKUP($D$13,'Capitalisation mensuelle'!$H$8:$T$32,8,FALSE) -> 7 | J20: =VLOOKUP($D$13,'Capitalisation mensuelle'!$H$8:$T$32,9,FALSE) -> 8 | K20: =VLOOKUP($D$13,'Capitalisation mensuelle'!$H$8:$T$32,10,FALSE) -> 9 | L20: =VLOOKUP($D$13,'Capitalisation mensuelle'!$H$8:$T$32,11,FALSE) -> 10 | M20: =VLOOKUP($D$13,'Capitalisation mensuelle'!$H$8:$T$32,12,FALSE) -> 11 | N20: =VLOOKUP($D$13,'Capitalisation mensuelle'!$H$8:$T$32,13,FALSE) -> 12
B21: Intérêts sur les emprunts MLT | C21: =VLOOKUP(C20,'Capitalisation mensuelle'!$A$8:$E$308,2,FALSE) -> 166.6666667 | D21: =VLOOKUP(D20,'Capitalisation mensuelle'!$A$8:$E$308,2,FALSE) -> 165.0054596 | E21: =VLOOKUP(E20,'Capitalisation mensuelle'!$A$8:$E$308,2,FALSE) -> 163.3373308 | F21: =VLOOKUP(F20,'Capitalisation mensuelle'!$A$8:$E$308,2,FALSE) -> 161.6622515 | G21: =VLOOKUP(G20,'Capitalisation mensuelle'!$A$8:$E$308,2,FALSE) -> 159.9801927 | H21: =VLOOKUP(H20,'Capitalisation mensuelle'!$A$8:$E$308,2,FALSE) -> 158.2911254 | I21: =VLOOKUP(I20,'Capitalisation mensuelle'!$A$8:$E$308,2,FALSE) -> 156.5950202 | J21: =VLOOKUP(J20,'Capitalisation mensuelle'!$A$8:$E$308,2,FALSE) -> 154.8918479 | K21: =VLOOKUP(K20,'Capitalisation mensuelle'!$A$8:$E$308,2,FALSE) -> 153.1815791 | L21: =VLOOKUP(L20,'Capitalisation mensuelle'!$A$8:$E$308,2,FALSE) -> 151.4641842 | M21: =VLOOKUP(M20,'Capitalisation mensuelle'!$A$8:$E$308,2,FALSE) -> 149.7396335 | N21: =VLOOKUP(N20,'Capitalisation mensuelle'!$A$8:$E$308,2,FALSE) -> 148.0078971
B22: Remboursement du capital | C22: =VLOOKUP(C20,'Capitalisation mensuelle'!$A$8:$E$308,3) -> 398.6896962 | D22: =VLOOKUP(D20,'Capitalisation mensuelle'!$A$8:$E$308,3) -> 400.3509033 | E22: =VLOOKUP(E20,'Capitalisation mensuelle'!$A$8:$E$308,3) -> 402.019032 | F22: =VLOOKUP(F20,'Capitalisation mensuelle'!$A$8:$E$308,3) -> 403.6941113 | G22: =VLOOKUP(G20,'Capitalisation mensuelle'!$A$8:$E$308,3) -> 405.3761701 | H22: =VLOOKUP(H20,'Capitalisation mensuelle'!$A$8:$E$308,3) -> 407.0652375 | I22: =VLOOKUP(I20,'Capitalisation mensuelle'!$A$8:$E$308,3) -> 408.7613427 | J22: =VLOOKUP(J20,'Capitalisation mensuelle'!$A$8:$E$308,3) -> 410.4645149 | K22: =VLOOKUP(K20,'Capitalisation mensuelle'!$A$8:$E$308,3) -> 412.1747837 | L22: =VLOOKUP(L20,'Capitalisation mensuelle'!$A$8:$E$308,3) -> 413.8921787 | M22: =VLOOKUP(M20,'Capitalisation mensuelle'!$A$8:$E$308,3) -> 415.6167294 | N22: =VLOOKUP(N20,'Capitalisation mensuelle'!$A$8:$E$308,3) -> 417.3484658
B23: Mensualités | C23: =SUM(C21:C22) -> 565.3563629 | D23: 565.3563629 | E23: 565.3563629 | F23: 565.3563629 | G23: 565.3563629 | H23: 565.3563629 | I23: 565.3563629 | J23: 565.3563629 | K23: 565.3563629 | L23: 565.3563629 | M23: 565.3563629 | N23: 565.3563629
B25: Pour la colonne N
B26: Intérêts sur les emprunts MLT | C26: =SUM(C21:N21) -> 1888.823189
B27: Remboursement du capital | C27: =SUM(C22:N22) -> 4895.453166
B28: Annuité | C28: =SUM(C23:N23) -> 6784.276355
B31: Capitalisation semestrielle (deux fois par année)
B32: Pour les colonnes B à M
B33: Mois | C33: =VLOOKUP($D$13,'Capitalisation mensuelle'!$H$8:$T$32,2,FALSE) -> 1 | D33: =VLOOKUP($D$13,'Capitalisation mensuelle'!$H$8:$T$32,3,FALSE) -> 2 | E33: =VLOOKUP($D$13,'Capitalisation mensuelle'!$H$8:$T$32,4,FALSE) -> 3 | F33: =VLOOKUP($D$13,'Capitalisation mensuelle'!$H$8:$T$32,5,FALSE) -> 4 | G33: =VLOOKUP($D$13,'Capitalisation mensuelle'!$H$8:$T$32,6,FALSE) -> 5 | H33: =VLOOKUP($D$13,'Capitalisation mensuelle'!$H$8:$T$32,7,FALSE) -> 6 | I33: =VLOOKUP($D$13,'Capitalisation mensuelle'!$H$8:$T$32,8,FALSE) -> 7 | J33: =VLOOKUP($D$13,'Capitalisation mensuelle'!$H$8:$T$32,9,FALSE) -> 8 | K33: =VLOOKUP($D$13,'Capitalisation mensuelle'!$H$8:$T$32,10,FALSE) -> 9 | L33: =VLOOKUP($D$13,'Capitalisation mensuelle'!$H$8:$T$32,11,FALSE) -> 10 | M33: =VLOOKUP($D$13,'Capitalisation mensuelle'!$H$8:$T$32,12,FALSE) -> 11 | N33: =VLOOKUP($D$13,'Capitalisation mensuelle'!$H$8:$T$32,13,FALSE) -> 12
B34: Intérêts sur les emprunts MLT | C34: =VLOOKUP(C33,'Capitalisation semestrielle'!$A$8:$E$308,2,FALSE) -> 164.9566186 | D34: =VLOOKUP(D33,'Capitalisation semestrielle'!$A$8:$E$308,2,FALSE) -> 163.3093782 | E34: =VLOOKUP(E33,'Capitalisation semestrielle'!$A$8:$E$308,2,FALSE) -> 161.6553448 | F34: =VLOOKUP(F33,'Capitalisation semestrielle'!$A$8:$E$308,2,FALSE) -> 159.9944902 | G34: =VLOOKUP(G33,'Capitalisation semestrielle'!$A$8:$E$308,2,FALSE) -> 158.3267865 | H34: =VLOOKUP(H33,'Capitalisation semestrielle'!$A$8:$E$308,2,FALSE) -> 156.6522052 | I34: =VLOOKUP(I33,'Capitalisation semestrielle'!$A$8:$E$308,2,FALSE) -> 154.9707182 | J34: =VLOOKUP(J33,'Capitalisation semestrielle'!$A$8:$E$308,2,FALSE) -> 153.2822968 | K34: =VLOOKUP(K33,'Capitalisation semestrielle'!$A$8:$E$308,2,FALSE) -> 151.5869125 | L34: =VLOOKUP(L33,'Capitalisation semestrielle'!$A$8:$E$308,2,FALSE) -> 149.8845366 | M34: =VLOOKUP(M33,'Capitalisation semestrielle'!$A$8:$E$308,2,FALSE) -> 148.1751402 | N34: =VLOOKUP(N33,'Capitalisation semestrielle'!$A$8:$E$308,2,FALSE) -> 146.4586944
B35: Remboursement du capital | C35: =VLOOKUP(C33,'Capitalisation semestrielle'!$A$8:$D$308,3) -> 399.436018 | D35: =VLOOKUP(D33,'Capitalisation semestrielle'!$A$8:$D$308,3) -> 401.0832584 | E35: =VLOOKUP(E33,'Capitalisation semestrielle'!$A$8:$D$308,3) -> 402.7372919 | F35: =VLOOKUP(F33,'Capitalisation semestrielle'!$A$8:$D$308,3) -> 404.3981464 | G35: =VLOOKUP(G33,'Capitalisation semestrielle'!$A$8:$D$308,3) -> 406.0658502 | H35: =VLOOKUP(H33,'Capitalisation semestrielle'!$A$8:$D$308,3) -> 407.7404314 | I35: =VLOOKUP(I33,'Capitalisation semestrielle'!$A$8:$D$308,3) -> 409.4219185 | J35: =VLOOKUP(J33,'Capitalisation semestrielle'!$A$8:$D$308,3) -> 411.1103399 | K35: =VLOOKUP(K33,'Capitalisation semestrielle'!$A$8:$D$308,3) -> 412.8057242 | L35: =VLOOKUP(L33,'Capitalisation semestrielle'!$A$8:$D$308,3) -> 414.5081001 | M35: =VLOOKUP(M33,'Capitalisation semestrielle'!$A$8:$D$308,3) -> 416.2174964 | N35: =VLOOKUP(N33,'Capitalisation semestrielle'!$A$8:$D$308,3) -> 417.9339422
B36: Mensualités | C36: =SUM(C34:C35) -> 564.3926366 | D36: 564.3926366 | E36: 564.3926366 | F36: 564.3926366 | G36: 564.3926366 | H36: 564.3926366 | I36: 564.3926366 | J36: 564.3926366 | K36: 564.3926366 | L36: 564.3926366 | M36: 564.3926366 | N36: 564.3926366
B38: Pour la colonne N
B39: Intérêts sur les emprunts MLT | C39: =SUM(C34:N34) -> 1869.253122
B40: Remboursement du capital | C40: =SUM(C35:N35) -> 4903.458518
B41: Annuité | C41: =SUM(C36:N36) -> 6772.71164
B43: Conception et programmation : Laurence Gendron, agronome, M. Sc., Directions régionales de la Mauricie et du Centre-du-Québec, MAPAQ

Sheet Capitalisation mensuelle (hidden)
A1: Capitalisation mensuelle
A3: Montant emprunté ($) | C3: =Emprunt!D4 -> 40000 | F3: Taux effectif | G3: Taux périodique (paiements mensuels) | V3: Au Canada, les taux hypothécaires affichés sont annuels, mais on les capitalise par semestre. Cela signifie que le taux nominal qu’on vous présente n’est pas le taux que vous payez réellement. Celui-ci en vient à être légèrement plus élevé.
A4: Taux d'intérêt (%) | C4: =Emprunt!D5 -> 5 | F4: =((1+C4/100/12)^12)-1 -> 0.05116189788 | G4: =((1+F4)^(1/12))-1 -> 0.004166666667
A5: Amortissement* (années) | C5: =Emprunt!D6 -> 7 | V5: Prenons l’exemple d’un taux annuel fixe de 3 %. Nous commençons par trouver le taux annuel réel pour ensuite déterminer le taux périodique, c’est-à-dire celui qui s’applique sur vos versements.
V7: Puisque la capitalisation est biannuelle, on en vient à trouver le taux périodique en utilisant les formules suivantes :
A8: Mois | B8: Intérêts | C8: Capital | D8: Mensualités | E8: Annuités | H8: An 1 | I8: 1 | J8: 2 | K8: 3 | L8: 4 | M8: 5 | N8: 6 | O8: 7 | P8: 8 | Q8: 9 | R8: 10 | S8: 11 | T8: 12
A9: 1 | B9: =-CUMIPMT($G$4,12*$C$5,$C$3,$A9,$A9,0) -> 166.6666667 | C9: =-CUMPRINC($G$4,$C$5*12,$C$3,$A9,$A9,0) -> 398.6896962 | D9: =SUM(B9:C9) -> 565.3563629 | E9: =SUM(D9:D20) -> 6784.276355 | H9: An 2 | I9: 13 | J9: 14 | K9: 15 | L9: 16 | M9: 17 | N9: 18 | O9: 19 | P9: 20 | Q9: 21 | R9: 22 | S9: 23 | T9: 24 | V9: Taux annuel affiché / Nombre de périodes de capitalisation
A10: 2 | B10: 165.0054596 | C10: 400.3509033 | D10: 565.3563629 | H10: An 3 | I10: 25 | J10: 26 | K10: 27 | L10: 28 | M10: 29 | N10: 30 | O10: 31 | P10: 32 | Q10: 33 | R10: 34 | S10: 35 | T10: 36
A11: 3 | B11: 163.3373308 | C11: 402.019032 | D11: 565.3563629 | H11: An 4 | I11: 37 | J11: 38 | K11: 39 | L11: 40 | M11: 41 | N11: 42 | O11: 43 | P11: 44 | Q11: 45 | R11: 46 | S11: 47 | T11: 48 | V11: Pour notre exemple on obtient : 3 % / 2 = 1,5 %
A12: 4 | B12: 161.6622515 | C12: 403.6941113 | D12: 565.3563629 | H12: An 5 | I12: 49 | J12: 50 | K12: 51 | L12: 52 | M12: 53 | N12: 54 | O12: 55 | P12: 56 | Q12: 57 | R12: 58 | S12: 59 | T12: 60
A13: 5 | B13: 159.9801927 | C13: 405.3761701 | D13: 565.3563629 | H13: An 6 | I13: 61 | J13: 62 | K13: 63 | L13: 64 | M13: 65 | N13: 66 | O13: 67 | P13: 68 | Q13: 69 | R13: 70 | S13: 71 | T13: 72 | V13: De par la capitalisation, on arrive à ce taux nouveau annuel : (1 + Taux par période de capitalisation)Nombre de périodes de cap. - 1 = Taux annuel réel
A14: 6 | B14: 158.2911254 | C14: 407.0652375 | D14: 565.3563629 | H14: An 7 | I14: 73 | J14: 74 | K14: 75 | L14: 76 | M14: 77 | N14: 78 | O14: 79 | P14: 80 | Q14: 81 | R14: 82 | S14: 83 | T14: 84
A15: 7 | B15: 156.5950202 | C15: 408.7613427 | D15: 565.3563629 | H15: An 8 | I15: 85 | J15: 86 | K15: 87 | L15: 88 | M15: 89 | N15: 90 | O15: 91 | P15: 92 | Q15: 93 | R15: 94 | S15: 95 | T15: 96 | V15: Notre exemple nous donne : (1 + 1,5 %) 2 - 1 = 3,0225 %
A16: 8 | B16: 154.8918479 | C16: 410.4645149 | D16: 565.3563629 | H16: An 9 | I16: 97 | J16: 98 | K16: 99 | L16: 100 | M16: 101 | N16: 102 | O16: 103 | P16: 104 | Q16: 105 | R16: 106 | S16: 107 | T16: 108
A17: 9 | B17: 153.1815791 | C17: 412.1747837 | D17: 565.3563629 | H17: An 10 | I17: 109 | J17: 110 | K17: 111 | L17: 112 | M17: 113 | N17: 114 | O17: 115 | P17: 116 | Q17: 117 | R17: 118 | S17: 119 | T17: 120 | V17: Puisque les paiements s’effectuent sur une base mensuelle (12 fois par année), bimensuelle (24 fois par année) ou aux deux semaines (26 fois par année), on doit ajuster le tout en fonction de la périodicité.
A18: 10 | B18: 151.4641842 | C18: 413.8921787 | D18: 565.3563629 | H18: An 11 | I18: 121 | J18: 122 | K18: 123 | L18: 124 | M18: 125 | N18: 126 | O18: 127 | P18: 128 | Q18: 129 | R18: 130 | S18: 131 | T18: 132
A19: 11 | B19: 149.7396335 | C19: 415.6167294 | D19: 565.3563629 | H19: An 12 | I19: 133 | J19: 134 | K19: 135 | L19: 136 | M19: 137 | N19: 138 | O19: 139 | P19: 140 | Q19: 141 | R19: 142 | S19: 143 | T19: 144 | V19: Si les paiements sont mensuels, on obtient ainsi ce taux périodique : (1 + 3,0225 %) 1/12 -1 = 0,248452 %
A20: 12 | B20: 148.0078971 | C20: 417.3484658 | D20: 565.3563629 | H20: An 13 | I20: 145 | J20: 146 | K20: 147 | L20: 148 | M20: 149 | N20: 150 | O20: 151 | P20: 152 | Q20: 153 | R20: 154 | S20: 155 | T20: 156
A21: 13 | B21: 146.2689451 | C21: 419.0874177 | D21: 565.3563629 | E21: =SUM(D21:D32) -> 6784.276355 | H21: An 14 | I21: 157 | J21: 158 | K21: 159 | L21: 160 | M21: 161 | N21: 162 | O21: 163 | P21: 164 | Q21: 165 | R21: 166 | S21: 167 | T21: 168 | V21: Jusqu’à l’échéance du terme de l’hypothèque, chacun de vos paiements sert à payer en intérêts 0,248452 % du solde. Le restant sera alloué à la diminution du capital (le montant du prêt).
A22: 14 | B22: 144.5227476 | C22: 420.8336153 | D22: 565.3563629 | H22: An 15 | I22: 169 | J22: 170 | K22: 171 | L22: 172 | M22: 173 | N22: 174 | O22: 175 | P22: 176 | Q22: 177 | R22: 178 | S22: 179 | T22: 180
A23: 15 | B23: 142.7692742 | C23: 422.5870887 | D23: 565.3563629 | H23: An 16 | I23: 181 | J23: 182 | K23: 183 | L23: 184 | M23: 185 | N23: 186 | O23: 187 | P23: 188 | Q23: 189 | R23: 190 | S23: 191 | T23: 192 | V23: Plus vous avancez dans le remboursement de votre hypothèque, plus la portion de votre versement allouée aux intérêts diminue, tandis que celle allouée au capital augmente. En effectuant un versement supplémentaire à votre paiement régulier, le capital diminue. Cela a pour effet de réduire la portion allouée aux intérêts lors de la prochaine période. Assurez-vous de respecter les modalités de votre contrat hypothécaire en matière de remboursement en capital. Cela explique pourquoi une période d’amortissement de plus courte durée peut vous faire économiser beaucoup en frais d’intérêts.
A24: 16 | B24: 141.0084946 | C24: 424.3478682 | D24: 565.3563629 | H24: An 17 | I24: 193 | J24: 194 | K24: 195 | L24: 196 | M24: 197 | N24: 198 | O24: 199 | P24: 200 | Q24: 201 | R24: 202 | S24: 203 | T24: 204
A25: 17 | B25: 139.2403785 | C25: 426.1159844 | D25: 565.3563629 | H25: An 18 | I25: 205 | J25: 206 | K25: 207 | L25: 208 | M25: 209 | N25: 210 | O25: 211 | P25: 212 | Q25: 213 | R25: 214 | S25: 215 | T25: 216
A26: 18 | B26: 137.4648952 | C26: 427.8914676 | D26: 565.3563629 | H26: An 19 | I26: 217 | J26: 218 | K26: 219 | L26: 220 | M26: 221 | N26: 222 | O26: 223 | P26: 224 | Q26: 225 | R26: 226 | S26: 227 | T26: 228
A27: 19 | B27: 135.6820141 | C27: 429.6743487 | D27: 565.3563629 | H27: An 20 | I27: 229 | J27: 230 | K27: 231 | L27: 232 | M27: 233 | N27: 234 | O27: 235 | P27: 236 | Q27: 237 | R27: 238 | S27: 239 | T27: 240
A28: 20 | B28: 133.8917043 | C28: 431.4646585 | D28: 565.3563629 | H28: An 21 | I28: 241 | J28: 242 | K28: 243 | L28: 244 | M28: 245 | N28: 246 | O28: 247 | P28: 248 | Q28: 249 | R28: 250 | S28: 251 | T28: 252
A29: 21 | B29: 132.0939349 | C29: 433.2624279 | D29: 565.3563629 | H29: An 22 | I29: 253 | J29: 254 | K29: 255 | L29: 256 | M29: 257 | N29: 258 | O29: 259 | P29: 260 | Q29: 261 | R29: 262 | S29: 263 | T29: 264
A30: 22 | B30: 130.2886748 | C30: 435.0676881 | D30: 565.3563629 | H30: An 23 | I30: 265 | J30: 266 | K30: 267 | L30: 268 | M30: 269 | N30: 270 | O30: 271 | P30: 272 | Q30: 273 | R30: 274 | S30: 275 | T30: 276
A31: 23 | B31: 128.4758928 | C31: 436.8804701 | D31: 565.3563629 | H31: An 24 | I31: 277 | J31: 278 | K31: 279 | L31: 280 | M31: 281 | N31: 282 | O31: 283 | P31: 284 | Q31: 285 | R31: 286 | S31: 287 | T31: 288
A32: 24 | B32: 126.6555575 | C32: 438.7008054 | D32: 565.3563629 | H32: An 25 | I32: 289 | J32: 290 | K32: 291 | L32: 292 | M32: 293 | N32: 294 | O32: 295 | P32: 296 | Q32: 297 | R32: 298 | S32: 299 | T32: 300
A33: 25 | B33: 124.8276375 | C33: 440.5287254 | D33: 565.3563629 | E33: =SUM(D33:D44) -> 6784.276355
A34: 26 | B34: 122.9921011 | C34: 442.3642618 | D34: 565.3563629
A35: 27 | B35: 121.1489167 | C35: 444.2074462 | D35: 565.3563629
A36: 28 | B36: 119.2980523 | C36: 446.0583105 | D36: 565.3563629
A37: 29 | B37: 117.439476 | C37: 447.9168868 | D37: 565.3563629
A38: 30 | B38: 115.5731557 | C38: 449.7832072 | D38: 565.3563629
A39: 31 | B39: 113.699059 | C39: 451.6573039 | D39: 565.3563629
A40: 32 | B40: 111.8171535 | C40: 453.5392093 | D40: 565.3563629
A41: 33 | B41: 109.9274068 | C41: 455.428956 | D41: 565.3563629
A42: 34 | B42: 108.0297862 | C42: 457.3265767 | D42: 565.3563629
A43: 35 | B43: 106.1242588 | C43: 459.2321041 | D43: 565.3563629
A44: 36 | B44: 104.2107917 | C44: 461.1455712 | D44: 565.3563629
A45: 37 | B45: 102.2893518 | C45: 463.0670111 | D45: 565.3563629 | E45: =SUM(D45:D56) -> 6784.276355
A46: 38 | B46: 100.3599059 | C46: 464.9964569 | D46: 565.3563629
A47: 39 | B47: 98.42242069 | C47: 466.9339422 | D47: 565.3563629
A48: 40 | B48: 96.4768626 | C48: 468.8795003 | D48: 565.3563629
A49: 41 | B49: 94.52319802 | C49: 470.8331649 | D49: 565.3563629
A50: 42 | B50: 92.56139316 | C50: 472.7949697 | D50: 565.3563629
A51: 43 | B51: 90.59141412 | C51: 474.7649488 | D51: 565.3563629
A52: 44 | B52: 88.61322684 | C52: 476.743136 | D52: 565.3563629
A53: 45 | B53: 86.6267971 | C53: 478.7295658 | D53: 565.3563629
A54: 46 | B54: 84.63209058 | C54: 480.7242723 | D54: 565.3563629
A55: 47 | B55: 82.62907278 | C55: 482.7272901 | D55: 565.3563629
A56: 48 | B56: 80.61770907 | C56: 484.7386538 | D56: 565.3563629
A57: 49 | B57: 78.59796468 | C57: 486.7583982 | D57: 565.3563629 | E57: =SUM(D57:D68) -> 6784.276355
A58: 50 | B58: 76.56980468 | C58: 488.7865582 | D58: 565.3563629
A59: 51 | B59: 74.53319403 | C59: 490.8231689 | D59: 565.3563629
A60: 52 | B60: 72.48809749 | C60: 492.8682654 | D60: 565.3563629
A61: 53 | B61: 70.43447972 | C61: 494.9218832 | D61: 565.3563629
A62: 54 | B62: 68.3723052 | C62: 496.9840577 | D62: 565.3563629
A63: 55 | B63: 66.3015383 | C63: 499.0548246 | D63: 565.3563629
A64: 56 | B64: 64.22214319 | C64: 501.1342197 | D64: 565.3563629
A65: 57 | B65: 62.13408395 | C65: 503.2222789 | D65: 565.3563629
A66: 58 | B66: 60.03732445 | C66: 505.3190384 | D66: 565.3563629
A67: 59 | B67: 57.93182846 | C67: 507.4245344 | D67: 565.3563629
A68: 60 | B68: 55.81755956 | C68: 509.5388033 | D68: 565.3563629
A69: 61 | B69: 53.69448122 | C69: 511.6618817 | D69: 565.3563629 | E69: =SUM(D69:D80) -> 6784.276355
A70: 62 | B70: 51.56255671 | C70: 513.7938062 | D70: 565.3563629
A71: 63 | B71: 49.42174918 | C71: 515.9346137 | D71: 565.3563629
A72: 64 | B72: 47.27202163 | C72: 518.0843413 | D72: 565.3563629
A73: 65 | B73: =-CUMIPMT($G$4,12*$C$5,$C$3,$A73,$A73,0) -> 45.11333687 | C73: =-CUMPRINC($G$4,$C$5*12,$C$3,$A73,$A73,0) -> 520.243026 | D73: =SUM(B73:C73) -> 565.3563629
A74: 66 | B74: 42.9456576 | C74: 522.4107053 | D74: 565.3563629
A75: 67 | B75: 40.76894632 | C75: 524.5874166 | D75: 565.3563629
A76: 68 | B76: 38.58316542 | C76: 526.7731975 | D76: 565.3563629
A77: 69 | B77: 36.3882771 | C77: 528.9680858 | D77: 565.3563629
A78: 70 | B78: 34.18424341 | C78: 531.1721195 | D78: 565.3563629
A79: 71 | B79: 31.97102624 | C79: 533.3853366 | D79: 565.3563629
A80: 72 | B80: 29.74858734 | C80: 535.6077755 | D80: 565.3563629
A81: 73 | B81: 27.51688828 | C81: 537.8394746 | D81: 565.3563629 | E81: =SUM(D81:D92) -> 6784.276355
A82: 74 | B82: 25.27589047 | C82: 540.0804724 | D82: 565.3563629
A83: 75 | B83: 23.02555516 | C83: 542.3308077 | D83: 565.3563629
A84: 76 | B84: 20.76584346 | C84: 544.5905194 | D84: 565.3563629
A85: 77 | B85: 18.4967163 | C85: 546.8596466 | D85: 565.3563629
A86: 78 | B86: 16.21813444 | C86: 549.1382284 | D86: 565.3563629
A87: 79 | B87: 13.93005849 | C87: 551.4263044 | D87: 565.3563629
A88: 80 | B88: 11.63244889 | C88: 553.723914 | D88: 565.3563629
A89: 81 | B89: 9.325265912 | C89: 556.031097 | D89: 565.3563629
A90: 82 | B90: 7.008469674 | C90: 558.3478932 | D90: 565.3563629
A91: 83 | B91: 4.682020119 | C91: 560.6743428 | D91: 565.3563629
A92: 84 | B92: 2.345877024 | C92: 563.0104859 | D92: 565.3563629
A93: 85 | E93: =SUM(D93:D104) -> 
A94: 86
A95: 87
A96: 88
A97: 89
A98: 90
A99: 91
A100: 92
A101: 93
A102: 94
A103: 95
A104: 96
A105: 97 | E105: =SUM(D105:D116) -> 
A106: 98
A107: 99
A108: 100
A109: 101
A110: 102
A111: 103
A112: 104
A113: 105
A114: 106
A115: 107
A116: 108
A117: 109 | E117: =SUM(D117:D128) -> 
A118: 110
A119: 111
A120: 112
A121: 113
A122: 114
A123: 115
A124: 116
A125: 117
A126: 118
A127: 119
A128: 120
A129: 121 | E129: =SUM(D129:D140) -> 
A130: 122
A131: 123
A132: 124
A133: 125
A134: 126
A135: 127
A136: 128
A137: 129 | B137: =-CUMIPMT($G$4,12*$C$5,$C$3,$A137,$A137,0) ->  | C137: =-CUMPRINC($G$4,$C$5*12,$C$3,$A137,$A137,0) ->  | D137: =SUM(B137:C137) -> 
A138: 130
A139: 131
A140: 132
A141: 133 | E141: =SUM(D141:D152) -> 
A142: 134
A143: 135
A144: 136
A145: 137
A146: 138
A147: 139
A148: 140
A149: 141
A150: 142
A151: 143
A152: 144
A153: 145 | E153: =SUM(D153:D164) -> 
A154: 146
A155: 147
A156: 148
A157: 149
A158: 150
A159: 151
A160: 152
A161: 153
A162: 154
A163: 155
A164: 156
A165: 157 | E165: =SUM(D165:D176) -> 
A166: 158
A167: 159
A168: 160
A169: 161
A170: 162
A171: 163
A172: 164
A173: 165
A174: 166
A175: 167
A176: 168
A177: 169 | E177: =SUM(D177:D188) -> 
A178: 170
A179: 171
A180: 172
A181: 173
A182: 174
A183: 175
A184: 176
A185: 177
A186: 178
A187: 179
A188: 180
A189: 181 | E189: =SUM(D189:D200) -> 
A190: 182
A191: 183
A192: 184
A193: 185
A194: 186
A195: 187
A196: 188
A197: 189
A198: 190
A199: 191
A200: 192
A201: 193 | B201: =-CUMIPMT($G$4,12*$C$5,$C$3,$A201,$A201,0) ->  | C201: =-CUMPRINC($G$4,$C$5*12,$C$3,$A201,$A201,0) ->  | D201: =SUM(B201:C201) ->  | E201: =SUM(D201:D212) -> 
A202: 194
... 106 more rows

Sheet Capitalisation semestrielle (hidden)
A1: Capitalisation semestrielle
A3: Montant emprunté ($) | C3: =Emprunt!D4 -> 40000 | F3: Taux effectif | G3: Taux périodique (paiements mensuels)
A4: Taux d'intérêt (%) | C4: 5 | F4: =((1+C4/100/2)^2)-1 -> 0.050625 | G4: =(1+F4)^(1/12)-1 -> 0.004123915465 | V4: Au Canada, les taux hypothécaires affichés sont annuels, mais on les capitalise par semestre. Cela signifie que le taux nominal qu’on vous présente n’est pas le taux que vous payez réellement. Celui-ci en vient à être légèrement plus élevé.
A5: Amortissement* (années) | C5: =Emprunt!D6 -> 7
V6: Prenons l’exemple d’un taux annuel fixe de 3 %. Nous commençons par trouver le taux annuel réel pour ensuite déterminer le taux périodique, c’est-à-dire celui qui s’applique sur vos versements.
A8: Mois | B8: Intérêts | C8: Capital | D8: Mensualités | E8: Annuités | H8: An 1 | I8: 1 | J8: 2 | K8: 3 | L8: 4 | M8: 5 | N8: 6 | O8: 7 | P8: 8 | Q8: 9 | R8: 10 | S8: 11 | T8: 12 | V8: Puisque la capitalisation est biannuelle, on en vient à trouver le taux périodique en utilisant les formules suivantes :
A9: 1 | B9: =-CUMIPMT($G$4,$C$5*12,$C$3,$A9,$A9,0) -> 164.9566186 | C9: =-CUMPRINC($G$4,$C$5*12,$C$3,$A9,$A9,0) -> 399.436018 | D9: =SUM(B9:C9) -> 564.3926366 | E9: =SUM(D9:D20) -> 6772.71164 | H9: An 2 | I9: 13 | J9: 14 | K9: 15 | L9: 16 | M9: 17 | N9: 18 | O9: 19 | P9: 20 | Q9: 21 | R9: 22 | S9: 23 | T9: 24
A10: 2 | B10: 163.3093782 | C10: 401.0832584 | D10: 564.3926366 | H10: An 3 | I10: 25 | J10: 26 | K10: 27 | L10: 28 | M10: 29 | N10: 30 | O10: 31 | P10: 32 | Q10: 33 | R10: 34 | S10: 35 | T10: 36 | V10: Taux annuel affiché / Nombre de périodes de capitalisation
A11: 3 | B11: 161.6553448 | C11: 402.7372919 | D11: 564.3926366 | H11: An 4 | I11: 37 | J11: 38 | K11: 39 | L11: 40 | M11: 41 | N11: 42 | O11: 43 | P11: 44 | Q11: 45 | R11: 46 | S11: 47 | T11: 48
A12: 4 | B12: 159.9944902 | C12: 404.3981464 | D12: 564.3926366 | H12: An 5 | I12: 49 | J12: 50 | K12: 51 | L12: 52 | M12: 53 | N12: 54 | O12: 55 | P12: 56 | Q12: 57 | R12: 58 | S12: 59 | T12: 60 | V12: Pour notre exemple on obtient : 3 % / 2 = 1,5 %
A13: 5 | B13: 158.3267865 | C13: 406.0658502 | D13: 564.3926366 | H13: An 6 | I13: 61 | J13: 62 | K13: 63 | L13: 64 | M13: 65 | N13: 66 | O13: 67 | P13: 68 | Q13: 69 | R13: 70 | S13: 71 | T13: 72
A14: 6 | B14: 156.6522052 | C14: 407.7404314 | D14: 564.3926366 | H14: An 7 | I14: 73 | J14: 74 | K14: 75 | L14: 76 | M14: 77 | N14: 78 | O14: 79 | P14: 80 | Q14: 81 | R14: 82 | S14: 83 | T14: 84 | V14: De par la capitalisation, on arrive à ce taux nouveau annuel : (1 + Taux par période de capitalisation)Nombre de périodes de cap. - 1 = Taux annuel réel
A15: 7 | B15: 154.9707182 | C15: 409.4219185 | D15: 564.3926366 | H15: An 8 | I15: 85 | J15: 86 | K15: 87 | L15: 88 | M15: 89 | N15: 90 | O15: 91 | P15: 92 | Q15: 93 | R15: 94 | S15: 95 | T15: 96
A16: 8 | B16: 153.2822968 | C16: 411.1103399 | D16: 564.3926366 | H16: An 9 | I16: 97 | J16: 98 | K16: 99 | L16: 100 | M16: 101 | N16: 102 | O16: 103 | P16: 104 | Q16: 105 | R16: 106 | S16: 107 | T16: 108 | V16: Notre exemple nous donne : (1 + 1,5 %) 2 - 1 = 3,0225 %
A17: 9 | B17: 151.5869125 | C17: 412.8057242 | D17: 564.3926366 | H17: An 10 | I17: 109 | J17: 110 | K17: 111 | L17: 112 | M17: 113 | N17: 114 | O17: 115 | P17: 116 | Q17: 117 | R17: 118 | S17: 119 | T17: 120
A18: 10 | B18: 149.8845366 | C18: 414.5081001 | D18: 564.3926366 | H18: An 11 | I18: 121 | J18: 122 | K18: 123 | L18: 124 | M18: 125 | N18: 126 | O18: 127 | P18: 128 | Q18: 129 | R18: 130 | S18: 131 | T18: 132 | V18: Puisque les paiements s’effectuent sur une base mensuelle (12 fois par année), bimensuelle (24 fois par année) ou aux deux semaines (26 fois par année), on doit ajuster le tout en fonction de la périodicité.
A19: 11 | B19: 148.1751402 | C19: 416.2174964 | D19: 564.3926366 | H19: An 12 | I19: 133 | J19: 134 | K19: 135 | L19: 136 | M19: 137 | N19: 138 | O19: 139 | P19: 140 | Q19: 141 | R19: 142 | S19: 143 | T19: 144
A20: 12 | B20: 146.4586944 | C20: 417.9339422 | D20: 564.3926366 | H20: An 13 | I20: 145 | J20: 146 | K20: 147 | L20: 148 | M20: 149 | N20: 150 | O20: 151 | P20: 152 | Q20: 153 | R20: 154 | S20: 155 | T20: 156 | V20: Si les paiements sont mensuels, on obtient ainsi ce taux périodique : (1 + 3,0225 %) 1/12 -1 = 0,248452 %
A21: 13 | B21: 144.7351702 | C21: 419.6574665 | D21: 564.3926366 | E21: =SUM(D21:D32) -> 6772.71164 | H21: An 14 | I21: 157 | J21: 158 | K21: 159 | L21: 160 | M21: 161 | N21: 162 | O21: 163 | P21: 164 | Q21: 165 | R21: 166 | S21: 167 | T21: 168
A22: 14 | B22: 143.0045383 | C22: 421.3880984 | D22: 564.3926366 | H22: An 15 | I22: 169 | J22: 170 | K22: 171 | L22: 172 | M22: 173 | N22: 174 | O22: 175 | P22: 176 | Q22: 177 | R22: 178 | S22: 179 | T22: 180 | V22: Jusqu’à l’échéance du terme de l’hypothèque, chacun de vos paiements sert à payer en intérêts 0,248452 % du solde. Le restant sera alloué à la diminution du capital (le montant du prêt).
A23: 15 | B23: 141.2667694 | C23: 423.1258673 | D23: 564.3926366 | H23: An 16 | I23: 181 | J23: 182 | K23: 183 | L23: 184 | M23: 185 | N23: 186 | O23: 187 | P23: 188 | Q23: 189 | R23: 190 | S23: 191 | T23: 192
A24: 16 | B24: 139.5218341 | C24: 424.8708026 | D24: 564.3926366 | H24: An 17 | I24: 193 | J24: 194 | K24: 195 | L24: 196 | M24: 197 | N24: 198 | O24: 199 | P24: 200 | Q24: 201 | R24: 202 | S24: 203 | T24: 204 | V24: Plus vous avancez dans le remboursement de votre hypothèque, plus la portion de votre versement allouée aux intérêts diminue, tandis que celle allouée au capital augmente. En effectuant un versement supplémentaire à votre paiement régulier, le capital diminue. Cela a pour effet de réduire la portion allouée aux intérêts lors de la prochaine période. Assurez-vous de respecter les modalités de votre contrat hypothécaire en matière de remboursement en capital. Cela explique pourquoi une période d’amortissement de plus courte durée peut vous faire économiser beaucoup en frais d’intérêts.
A25: 17 | B25: 137.7697028 | C25: 426.6229338 | D25: 564.3926366 | H25: An 18 | I25: 205 | J25: 206 | K25: 207 | L25: 208 | M25: 209 | N25: 210 | O25: 211 | P25: 212 | Q25: 213 | R25: 214 | S25: 215 | T25: 216
A26: 18 | B26: 136.0103459 | C26: 428.3822908 | D26: 564.3926366 | H26: An 19 | I26: 217 | J26: 218 | K26: 219 | L26: 220 | M26: 221 | N26: 222 | O26: 223 | P26: 224 | Q26: 225 | R26: 226 | S26: 227 | T26: 228
A27: 19 | B27: 134.2437335 | C27: 430.1489031 | D27: 564.3926366 | H27: An 20 | I27: 229 | J27: 230 | K27: 231 | L27: 232 | M27: 233 | N27: 234 | O27: 235 | P27: 236 | Q27: 237 | R27: 238 | S27: 239 | T27: 240
A28: 20 | B28: 132.4698358 | C28: 431.9228008 | D28: 564.3926366 | H28: An 21 | I28: 241 | J28: 242 | K28: 243 | L28: 244 | M28: 245 | N28: 246 | O28: 247 | P28: 248 | Q28: 249 | R28: 250 | S28: 251 | T28: 252
A29: 21 | B29: 130.6886227 | C29: 433.7040139 | D29: 564.3926366 | H29: An 22 | I29: 253 | J29: 254 | K29: 255 | L29: 256 | M29: 257 | N29: 258 | O29: 259 | P29: 260 | Q29: 261 | R29: 262 | S29: 263 | T29: 264
A30: 22 | B30: 128.900064 | C30: 435.4925726 | D30: 564.3926366 | H30: An 23 | I30: 265 | J30: 266 | K30: 267 | L30: 268 | M30: 269 | N30: 270 | O30: 271 | P30: 272 | Q30: 273 | R30: 274 | S30: 275 | T30: 276
A31: 23 | B31: 127.1041295 | C31: 437.2885072 | D31: 564.3926366 | H31: An 24 | I31: 277 | J31: 278 | K31: 279 | L31: 280 | M31: 281 | N31: 282 | O31: 283 | P31: 284 | Q31: 285 | R31: 286 | S31: 287 | T31: 288
A32: 24 | B32: 125.3007886 | C32: 439.091848 | D32: 564.3926366 | H32: An 25 | I32: 289 | J32: 290 | K32: 291 | L32: 292 | M32: 293 | N32: 294 | O32: 295 | P32: 296 | Q32: 297 | R32: 298 | S32: 299 | T32: 300
A33: 25 | B33: 123.490011 | C33: 440.9026257 | D33: 564.3926366 | E33: =SUM(D33:D44) -> 6772.71164
A34: 26 | B34: 121.6717658 | C34: 442.7208709 | D34: 564.3926366
A35: 27 | B35: 119.8460224 | C35: 444.5466143 | D35: 564.3926366
A36: 28 | B36: 118.0127497 | C36: 446.379887 | D36: 564.3926366
A37: 29 | B37: 116.1719168 | C37: 448.2207199 | D37: 564.3926366
A38: 30 | B38: 114.3234924 | C38: 450.0691442 | D38: 564.3926366
A39: 31 | B39: 112.4674453 | C39: 451.9251913 | D39: 564.3926366
A40: 32 | B40: 110.603744 | C40: 453.7888926 | D40: 564.3926366
A41: 33 | B41: 108.732357 | C41: 455.6602797 | D41: 564.3926366
A42: 34 | B42: 106.8532525 | C42: 457.5393841 | D42: 564.3926366
A43: 35 | B43: 104.9663988 | C43: 459.4262379 | D43: 564.3926366
A44: 36 | B44: 103.0717638 | C44: 461.3208728 | D44: 564.3926366
A45: 37 | B45: 101.1693155 | C45: 463.2233211 | D45: 564.3926366 | E45: =SUM(D45:D56) -> 6772.71164
A46: 38 | B46: 99.25902171 | C46: 465.1336149 | D46: 564.3926366
A47: 39 | B47: 97.34085 | C47: 467.0517866 | D47: 564.3926366
A48: 40 | B48: 95.41476792 | C48: 468.9778687 | D48: 564.3926366
A49: 41 | B49: 93.48074283 | C49: 470.9118938 | D49: 564.3926366
A50: 42 | B50: 91.53874199 | C50: 472.8538947 | D50: 564.3926366
A51: 43 | B51: 89.5887325 | C51: 474.8039041 | D51: 564.3926366
A52: 44 | B52: 87.63068134 | C52: 476.7619553 | D52: 564.3926366
A53: 45 | B53: 85.66455534 | C53: 478.7280813 | D53: 564.3926366
A54: 46 | B54: 83.6903212 | C54: 480.7023155 | D54: 564.3926366
A55: 47 | B55: 81.70794548 | C55: 482.6846912 | D55: 564.3926366
A56: 48 | B56: 79.71739462 | C56: 484.675242 | D56: 564.3926366
A57: 49 | B57: 77.7186349 | C57: 486.6740018 | D57: 564.3926366 | E57: =SUM(D57:D68) -> 6772.71164
A58: 50 | B58: 75.71163245 | C58: 488.6810042 | D58: 564.3926366
A59: 51 | B59: 73.6963533 | C59: 490.6962833 | D59: 564.3926366
A60: 52 | B60: 71.67276331 | C60: 492.7198733 | D60: 564.3926366
A61: 53 | B61: 69.64082821 | C61: 494.7518084 | D61: 564.3926366
A62: 54 | B62: 67.60051357 | C62: 496.7921231 | D62: 564.3926366
A63: 55 | B63: 65.55178485 | C63: 498.8408518 | D63: 564.3926366
A64: 56 | B64: 63.49460735 | C64: 500.8980293 | D64: 564.3926366
A65: 57 | B65: 61.42894622 | C65: 502.9636904 | D65: 564.3926366
A66: 58 | B66: 59.35476648 | C66: 505.0378702 | D66: 564.3926366
A67: 59 | B67: 57.27203299 | C67: 507.1206037 | D67: 564.3926366
A68: 60 | B68: 55.18071049 | C68: 509.2119262 | D68: 564.3926366
A69: 61 | B69: 53.08076356 | C69: 511.3118731 | D69: 564.3926366 | E69: =SUM(D69:D80) -> 6772.71164
A70: 62 | B70: 50.97215662 | C70: 513.42048 | D70: 564.3926366
A71: 63 | B71: 48.85485396 | C71: 515.5377827 | D71: 564.3926366
A72: 64 | B72: 46.72881972 | C72: 517.6638169 | D72: 564.3926366
A73: 65 | B73: =-CUMIPMT($G$4,$C$5*12,$C$3,$A73,$A73,0) -> 44.5940179 | C73: =-CUMPRINC($G$4,$C$5*12,$C$3,$A73,$A73,0) -> 519.7986187 | D73: =SUM(B73:C73) -> 564.3926366
A74: 66 | B74: 42.45041234 | C74: 521.9422243 | D74: 564.3926366
A75: 67 | B75: 40.29796673 | C75: 524.0946699 | D75: 564.3926366
A76: 68 | B76: 38.13664461 | C76: 526.255992 | D76: 564.3926366
A77: 69 | B77: 35.96640939 | C77: 528.4262273 | D77: 564.3926366
A78: 70 | B78: 33.7872243 | C78: 530.6054123 | D78: 564.3926366
A79: 71 | B79: 31.59905243 | C79: 532.7935842 | D79: 564.3926366
A80: 72 | B80: 29.40185673 | C80: 534.9907799 | D80: 564.3926366
A81: 73 | B81: 27.19559998 | C81: 537.1970367 | D81: 564.3926366 | E81: =SUM(D81:D92) -> 6772.71164
A82: 74 | B82: 24.98024481 | C82: 539.4123918 | D82: 564.3926366
A83: 75 | B83: 22.75575371 | C83: 541.6368829 | D83: 564.3926366
A84: 76 | B84: 20.52208899 | C84: 543.8705477 | D84: 564.3926366
A85: 77 | B85: 18.27921283 | C85: 546.1134238 | D85: 564.3926366
A86: 78 | B86: 16.02708723 | C86: 548.3655494 | D86: 564.3926366
A87: 79 | B87: 13.76567406 | C87: 550.6269626 | D87: 564.3926366
A88: 80 | B88: 11.49493502 | C88: 552.8977016 | D88: 564.3926366
A89: 81 | B89: 9.214831636 | C89: 555.177805 | D89: 564.3926366
A90: 82 | B90: 6.9253253 | C90: 557.4673113 | D90: 564.3926366
A91: 83 | B91: 4.626377233 | C91: 559.7662594 | D91: 564.3926366
A92: 84 | B92: 2.317948499 | C92: 562.0746881 | D92: 564.3926366
A93: 85 | E93: =SUM(D93:D104) -> 
A94: 86
A95: 87
A96: 88
A97: 89
A98: 90
A99: 91
A100: 92
A101: 93
A102: 94
A103: 95
A104: 96
A105: 97 | E105: =SUM(D105:D116) -> 
A106: 98
A107: 99
A108: 100
A109: 101
A110: 102
A111: 103
A112: 104
A113: 105
A114: 106
A115: 107
A116: 108
A117: 109 | E117: =SUM(D117:D128) -> 
A118: 110
A119: 111
A120: 112
A121: 113
A122: 114
A123: 115
A124: 116
A125: 117
A126: 118
A127: 119
A128: 120
A129: 121 | E129: =SUM(D129:D140) -> 
A130: 122
A131: 123
A132: 124
A133: 125
A134: 126
A135: 127
A136: 128
A137: 129 | B137: =-CUMIPMT($G$4,$C$5*12,$C$3,$A137,$A137,0) ->  | C137: =-CUMPRINC($G$4,$C$5*12,$C$3,$A137,$A137,0) ->  | D137: =SUM(B137:C137) -> 
A138: 130
A139: 131
A140: 132
A141: 133 | E141: =SUM(D141:D152) -> 
A142: 134
A143: 135
A144: 136
A145: 137
A146: 138
A147: 139
A148: 140
A149: 141
A150: 142
A151: 143
A152: 144
A153: 145 | E153: =SUM(D153:D164) -> 
A154: 146
A155: 147
A156: 148
A157: 149
A158: 150
A159: 151
A160: 152
A161: 153
A162: 154
A163: 155
A164: 156
A165: 157 | E165: =SUM(D165:D176) -> 
A166: 158
A167: 159
A168: 160
A169: 161
A170: 162
A171: 163
A172: 164
A173: 165
A174: 166
A175: 167
A176: 168
A177: 169 | E177: =SUM(D177:D188) -> 
A178: 170
A179: 171
A180: 172
A181: 173
A182: 174
A183: 175
A184: 176
A185: 177
A186: 178
A187: 179
A188: 180
A189: 181 | E189: =SUM(D189:D200) -> 
A190: 182
A191: 183
A192: 184
A193: 185
A194: 186
A195: 187
A196: 188
A197: 189
A198: 190
A199: 191
A200: 192
A201: 193 | B201: =-CUMIPMT($G$4,$C$5*12,$C$3,$A201,$A201,0) ->  | C201: =-CUMPRINC($G$4,$C$5*12,$C$3,$A201,$A201,0) ->  | D201: =SUM(B201:C201) ->  | E201: =SUM(D201:D212) -> 
A202: 194
... 106 more rows
